Cogmind - Beta 13 @@@ ROGUE MODE // 2024.03.31 @ 22:41:47 Player: BigMaxPorter Result: Destroyed by Y-45 Defender with Beam Rifle Performance ------------- Evolutions (1) 500 Regions Visited (3) 600 Robots Destroyed (37) 185 Value Destroyed (1005) 1005 Prototype IDs (0) 0 Alien Tech Used (0) 0 Bonus (-343) -343 TOTAL SCORE: 1947 Bonus ------- High Alert Combat Kills 36 Follower Combat Kills 60 Friendly Fire -439 Cogmind --------- Core Integrity 0/400 Matter 76/300 Energy 99/100 System Corruption 0% Temperature Cool (43) Movement Treading (160) Location -9/Storage Parts ------- > --- POWER (1) -------- (None) > --- PROPULSION (3) --- Light Treads > --- UTILITY (3) ------ Medium Storage Unit > --- WEAPON (2) ------- Assault Cannon Assault Cannon > --- INVENTORY (10) --- (None) Peak State ------------ > --- POWER ------------ Light Nuclear Core > --- PROPULSION ------- Light Treads Armored Wheel Armored Wheel > --- UTILITY ---------- Medium Storage Unit Reflective Plating Reflective Plating > --- WEAPON ----------- Assault Cannon Assault Cannon > --- INVENTORY -------- Light Assault Rifle [Rating: 21] Favorites ----------- Power Light Nuclear Core Engine Ion Engine Power Core Light Nuclear Core Propulsion Armored Wheel Treads Light Treads Leg Aluminum Leg Wheel Armored Wheel Flight Unit VTOL Module Utility Medium Storage Unit Device Improved Terrain Scanner Storage Medium Storage Unit Protection Reflective Plating Weapon Mini Grenade Launcher Energy Gun Medium Laser Ballistic Gun Assault Rifle Ballistic Cannon Assault Cannon Launcher Mini Grenade Launcher Build | -11 -10 -9 -9 ------- Run | Yrd Mat Mat Sto Slots Evolved 2 | . . 2 . Power . | . . . . Propulsion 1 | . . 1 . Utility 1 | . . 1 . Weapon . | . . . . Parts Attached 35 | 6 10 5 14 Power 5 | 1 2 . 2 Engine 3 | 1 . . 2 Core 2 | . 2 . . Reactor . | . . . . Propulsion 12 | 2 4 1 5 Treads 3 | . . 1 2 Leg 2 | . . . 2 Wheel 6 | 2 4 . . Hover . | . . . . Flight 1 | . . . 1 Utility 4 | 1 1 2 . Device 1 | 1 . . . Storage 1 | . 1 . . Processor . | . . . . Hackware . | . . . . Protection 2 | . . 2 . Artifact . | . . . . Weapon 14 | 2 3 2 7 Energy Gun 1 | . 1 . . Energy Cannon . | . . . . Ballistic Gun 5 | 2 2 . 1 Ballistic Cannon 4 | . . 2 2 Launcher 4 | . . . 4 Special Weapon . | . . . . Impact Weapon . | . . . . Slashing Weapon . | . . . . Piercing Weapon . | . . . . Special Melee Weapon . | . . . . Unidentified Prototypes . | . . . . Parts Lost 13 | . 3 . 10 Power 3 | . 1 . 2 Propulsion 4 | . . . 4 Utility 3 | . 1 . 2 Weapon 3 | . 1 . 2 Highest Loss Streak 6 | . 2 . 6 To Critical Strikes . | . . . . Average Slot Usage (%) 69 | . 81 91 58 Engine 3 | . 2 . 4 Core 5 | . 10 11 1 Treads 4 | . . 6 7 Wheel 13 | . 28 22 4 Flight 2 | . . . 3 Device 1 | . 6 . . Storage 10 | . 8 11 11 Protection 4 | . . 18 3 Energy Gun 2 | . 6 2 . Ballistic Gun 5 | . 18 2 . Ballistic Cannon 6 | . . 17 7 Launcher 7 | . . . 12 Naked Turns . | . . . . Heaviest Build 33 | 7 19 33 33 Greatest Support 40 | 20 24 24 40 Greatest Overweight (x) 5 | . . 1 5 Average Overweight (x) . | . . . 1 Largest Inventory Capacity 10 | 5 10 10 10 Average Capacity 9 | 5 7 10 10 Most Carried 4 | . 4 1 4 Average Carried 1 | . . 1 2 Final Capacity 10 | 5 10 10 10 Final Carried 1 | . 1 1 . Class Distribution -------------------- 100% | Mutant Dominant Class ---------------- Mutant | -10/Materials Mutant | -9/Materials Mutant | -9/Storage Resources | -11 -10 -9 -9 ----------- Run | Yrd Mat Mat Sto Matter Collected 736 | 280 188 60 208 Remotely . | . . . . Salvage Created 986 | 63 283 60 580 Parts 62 | 4 18 3 37 Haulers Intercepted . | . . . . Recyclers Shooed . | . . . . Parts Field Recycled . | . . . . Retrieved Matter . | . . . . Parts Self-Destructed . | . . . . Prevented . | . . . . Kills | -11 -10 -9 -9 ------- Run | Yrd Mat Mat Sto Combat Hostiles Destroyed 25 | 1 6 2 16 Guns 8 | 1 6 . 1 Cannons 4 | . . 2 2 AOE 13 | . . . 13 Classes Destroyed 9 | 2 1 1 5 Worker 4 | . . . 4 Builder 1 | . . . 1 Tunneler 1 | 1 . . . Mechanic 1 | . . . 1 Watcher 3 | . 1 . 2 Grunt 18 | 1 6 1 10 Brawler 2 | . . . 2 Protector 1 | . . . 1 Sentry 4 | . . 1 3 Thug 2 | . . . 2 Best Kill Streak 22 | 2 3 1 22 Combat Bots Only 14 | 1 3 1 14 Max Kills in Single Turn 8 | 2 1 1 8 Gunslinging . | . . . . Exploded 4 | . . . 4 Melee . | . . . . Uniques/NPCs Destroyed . | . . . . Combat | -11 -10 -9 -9 -------- Run | Yrd Mat Mat Sto Hostile Shots Fired 218 | 6 71 14 127 Missed 60 | 2 19 1 38 Damage Taken 2314 | 43 634 176 1461 Core 599 | 32 167 13 387 Absorbed by Shields . | . . . . Ignored by Resistances 43 | . . 7 36 Core Remaining (%) 53 | 87 20 . . Volleys Fired 71 | 5 37 6 23 Largest 2 | 2 2 2 2 Hottest 88 | 40 70 88 88 Shots Fired 124 | 10 62 11 41 Gun 78 | 10 62 1 5 Cannon 20 | . . 10 10 Launcher 26 | . . . 26 Special . | . . . . Kinetic 89 | 10 53 11 15 Thermal 9 | . 9 . . Explosive 26 | . . . 26 Electromagnetic . | . . . . Robot Hit Streak 7 | 1 7 5 7 Robot Miss Streak 7 | 1 7 1 1 Penetration Max . | . . . . Secondary Targets 1 | . 1 . . Max Gunslinging Chain 1 | . 1 . . Shots Hit Robots 65 | 5 36 7 17 Core Hits 65 | 3 17 2 43 Critical Kills . | . . . . Critical Parts Destroyed . | . . . . Critical Strikes 1 | . . 1 . Blast 1 | . . 1 . Melee Attacks . | . . . . Impact . | . . . . Slashing . | . . . . Piercing . | . . . . Sneak Attacks . | . . . . Combat Hostiles . | . . . . Follow-up Attacks . | . . . . Damage Inflicted 2742 | 66 494 156 2026 Guns 596 | 66 494 . 36 Cannons 280 | . . 156 124 Explosions 1861 | . . . 1861 Melee . | . . . . Ramming 5 | . . . 5 Kinetic 828 | 66 446 156 160 Thermal 48 | . 48 . . Explosive 1861 | . . . 1861 Electromagnetic . | . . . . Impact . | . . . . Slashing . | . . . . Piercing . | . . . . Highest Corruption . | . . . . Average Corruption . | . . . . Corruption Purged . | . . . . Corruption Blocked . | . . . . Overload Shots . | . . . . Overflow Damage 69 | . . 12 57 Projectiles 12 | . . 12 . Explosions 57 | . . . 57 Melee . | . . . . Knockbacks 2 | . . 2 . Impact . | . . . . Kinetic 2 | . . 2 . Secondary . | . . . . Self-Inflicted Damage 148 | . . . 148 Shots 6 | . . . 6 Rammed 2 | . . . 2 Targets Rammed 4 | . . . 4 Kicked 2 | . . . 2 Crushed . | . . . . Highest Temperature 112 | 6 78 93 112 Average Temperature 29 | 6 22 34 38 Received Heat Transfer 1005 | 24 354 75 552 Siege Activations . | . . . . Robots Corrupted . | . . . . Combat Hostiles . | . . . . Parts Fried . | . . . . Impact Corruptions . | . . . . Robots Melted . | . . . . Combat Hostiles . | . . . . Parts Melted . | . . . . Heat Transferred 148 | . 148 . . Parts Sabotaged . | . . . . Parts Stolen . | . . . . Parts Stripped . | . . . . Power Chain Reactions . | . . . . Alert | -11 -10 -9 -9 ------- Run | Yrd Mat Mat Sto Peak Influence 510 | 25 167 66 510 Initial 27 | . 16 . 27 Average 220 | 4 87 38 342 Maximum Alert Level 2 | . . . 2 Low Security (%) 52 | 100 100 100 14 Level 1 29 | . . . 52 Level 2 17 | . . . 32 Level 3 . | . . . . Level 4 . | . . . . Level 5 . | . . . . High Security . | . . . . Max Security . | . . . . Squads Dispatched 7 | . 2 . 5 Investigation 1 | . . . 1 Extermination . | . . . . Reinforcement 4 | . 2 . 2 Assault 2 | . . . 2 Garrison . | . . . . Intercept . | . . . . Searches Triggered . | . . . . Construction Impeded 1 | . . . 1 Haulers Reinforced . | . . . . Active Scanning Responses . | . . . . Cargo Convoy Interrupts . | . . . . Stealth | -11 -10 -9 -9 --------- Run | Yrd Mat Mat Sto Distress Signals 3 | . 1 1 1 Communications Jammed . | . . . . Distress Signals . | . . . . Times Spotted 46 | 1 11 5 29 Peak Tracking Total 8 | 1 5 2 8 Tactical Retreats . | . . . . Traps | -11 -10 -9 -9 ------- Run | Yrd Mat Mat Sto Traps Triggered 4 | . 1 . 3 Indirectly . | . . . . Trap Hack Attempts . | . . . . Triggered . | . . . . Disarmed . | . . . . Reprogrammed . | . . . . Reused . | . . . . Traps Extracted . | . . . . Installed . | . . . . Triggered . | . . . . Machines | -11 -10 -9 -9 ---------- Run | Yrd Mat Mat Sto Machines Disabled . | . . . . Max in Single Turn . | . . . . Machines Repaired . | . . . . Machines Dismantled . | . . . . Machines Sabotaged . | . . . . Overloaded Fab Kills . | . . . . Hacking | -11 -10 -9 -9 --------- Run | Yrd Mat Mat Sto Machines Accessed 4 | . 3 . 1 Terminals 4 | . 3 . 1 Fabricators . | . . . . Repair Stations . | . . . . Recycling Units . | . . . . Scanalyzers . | . . . . Garrison Access . | . . . . Total Hacks 16 | . 14 . 2 Successful 6 | . 6 . . Failed 10 | . 8 . 2 Catastrophic 1 | . . . 1 Database Lockouts . | . . . . Manual . | . . . . Terminals 16 | . 14 . 2 Fabricators . | . . . . Repair Stations . | . . . . Recycling Units . | . . . . Scanalyzers . | . . . . Garrison Access . | . . . . Terminal Hacks 6 | . 6 . . Record 1 | . 1 . . Alert Level 1 | . 1 . . Locate Traps 1 | . 1 . . Dispatch Records 1 | . 1 . . Maintenance Status 1 | . 1 . . Reinforcement Status 1 | . 1 . . Fabricator Hacks . | . . . . Repair Station Hacks . | . . . . Recycling Unit Hacks . | . . . . Scanalyzer . | . . . . Garrison Access Hacks . | . . . . Unauthorized Hacks . | . . . . Terminals . | . . . . Fabricators . | . . . . Repair Stations . | . . . . Recycling Units . | . . . . Scanalyzers . | . . . . Garrison Access . | . . . . Data Cores Recovered . | . . . . Used . | . . . . Hacking Detections 4 | . 3 . 1 Full Trace Events 4 | . 3 . 1 Feedback Events . | . . . . Feedback Blocked . | . . . . Robot Schematics Acquired . | . . . . Robots Built . | . . . . Authchips . | . . . . Time . | . . . . Total Robot Build Rating . | . . . . Part Schematics Acquired . | . . . . Parts Built . | . . . . Authchips . | . . . . Time . | . . . . Total Part Build Rating . | . . . . Parts Repaired . | . . . . Time . | . . . . Parts Recycled . | . . . . Recycled Matter . | . . . . Retrieved Matter . | . . . . Retrieved Components . | . . . . Parts Scanalyzed . | . . . . Part Schematics Acquired . | . . . . Parts Damaged . | . . . . Bothacking | -11 -10 -9 -9 ------------ Run | Yrd Mat Mat Sto Used RIF Installer . | . . . . Robots Hacked . | . . . . Non-combat . | . . . . Combat . | . . . . Robot Hacks Applied . | . . . . Relay Couplers Released . | . . . . Fabnet Peak Effective % . | . . . . Robots Rewired . | . . . . Allies Hacked . | . . . . Hacks Repelled . | . . . . Allies | -11 -10 -9 -9 -------- Run | Yrd Mat Mat Sto Total Allies 2 | . . . 2 Largest Group 2 | . . . 2 Highest-Rated Group 62 | . . . 62 Highest-Rated Ally 31 | . . . 31 Total Orders . | . . . . Ally Attacks 18 | . . . 18 Total Damage 272 | . . . 272 Kills 3 | . . . 3 Allies Corrupted . | . . . . Allies Melted . | . . . . Intel | -11 -10 -9 -9 ------- Run | Yrd Mat Mat Sto Robot Analysis Total . | . . . . Derelict Logs Recovered . | . . . . Drone Launches . | . . . . Drone Recoveries . | . . . . Exploration | -11 -10 -9 -9 ------------- Run | Yrd Mat Mat Sto Turns Passed 1484 | 73 404 177 830 Spaces Moved 806 | 69 325 95 317 Core 57 | 16 . . 41 Treads 196 | . . 43 153 Legs 45 | . . . 45 Wheels 430 | 53 325 52 . Hover . | . . . . Flight 78 | . . . 78 Fastest Speed 50 | 50 80 90 120 Average Speed 151 | 73 88 161 228 Slowest Speed 365 | 80 90 240 365 Overloaded Moves . | . . . . Propulsion Burnouts . | . . . . Robots Hopped . | . . . . Cave-ins Triggered 1 | . . . 1 Exploration Rate (%) 26 | 5 48 9 42 Regions Visited 3 Branch Regions 1 Pre-discovered Areas . | . . . . Known Exits Taken . | . . . . Unknown Exits Taken 3 | 1 1 1 . Scrap Searched . | . . . . Spaces Dug . | . . . . Terrain Destroyed 148 | . . 1 147 Melee . | . . . . Projectile 4 | . . 1 3 AOE 144 | . . . 144 Terrain Rammed . | . . . . Walls Destroyed . | . . . . Machines Disabled . | . . . . Actions | -11 -10 -9 -9 --------- Run | Yrd Mat Mat Sto Total 945 | 79 380 107 379 Wait 16 | . 3 . 13 Move 803 | 68 324 94 317 Hop . | . . . . Pick Up 6 | . 2 . 4 Fast Attach 21 | 6 4 5 6 Attach 6 | . . . 6 Detach 2 | . . . 2 Swap 8 | . 6 . 2 Drop 8 | . 4 2 2 Fire 71 | 5 37 6 23 Melee . | . . . . Ram . | . . . . Kick 2 | . . . 2 Crush 2 | . . . 2 Escape Stasis . | . . . . Rewire . | . . . . Trap . | . . . . Miscellaneous . | . . . . Route ------- -11/Scrapyard -10/Materials (discovered 2 exits: [*Mat x2]) -9/Materials (discovered 2 exits: *Sto x2) -9/Storage History --------- Turn | Location | Event 2 | -11/Scrapyard | Met Revision 17 46 | -11/Scrapyard | Discovered new exit (range 8) 74 | -11/Scrapyard | Entered Materials 216 | -10/Materials | Discovered new exit (range 16) 248 | -10/Materials | Core integrity fell below 50% 324 | -10/Materials | Build established: Mutant 465 | -10/Materials | Discovered new exit (range 15) 478 | -10/Materials | Entered another Materials area 478 | -9/Materials | Evolved 2 slots: Propulsion x1, Utility x1 497 | -9/Materials | Discovered new exit (range 13) 531 | -9/Materials | Discovered new exit (range 16) 655 | -9/Materials | Entered Storage 699 | -9/Storage | Met a pair of Derelict thieves 819 | -9/Storage | Crushed by falling debris 849 | -9/Storage | Destroyed 14 combat bots 859 | -9/Storage | Lost 6 parts (1p3n2u) 1218 | -9/Storage | Core integrity fell below 50% 1265 | -9/Storage | Lost 3 parts (1p2w) 1417 | -9/Storage | Core integrity fell below 20% 1485 | -9/Storage | Destroyed by Y-45 Defender with Beam Rifle Last Messages --------------- K-01 Serf cleans the Terminal. U-05 Engineer lays Concrete. U-05 Engineer builds a Wall. U-05 Engineer lays Concrete. U-05 Engineer builds a Wall. U-05 Engineer lays Concrete. O-16 Technician: "IFF HANDSHAKE FAILED. SECURING TERMINAL." ALERT: Hostiles spotted, dispatching reinforcements to Terminal S005. Slammed into K-01 Serf. Slammed into A-02 Transporter. Triggered EMP Trap. A bubble of electromagnetic force engulfs the area. R-06 Scavenger destroyed. Critical hit (Burn: +37). Acquired 85 matter. Y-45 Defender destroyed. Lgt. Treads destroyed. Map ----- +----------------------------------------------------+ | ?????????????????????????????????????????????????? | | ?????????????????????????????????????????????????? | | ?????????????????????????????????????????????????? | | ?????????????????????????????????????????????????? | | ?????????????????????????????????????????????????? | | ?????????????????????????????????????????????????? | | ?????????????????????????????????????????????????? | | ?????????????????????????????????????????????????? | | ?????????????????????????????????????????????????? | | ?????????????????????????????????????????????????? | | ?????????????????????????????????????????######### | | ?????????????????????????????????????????# | | ?????????????????????????????????????????# """" | | ?????????????????????????????????????????# ""??" | | ?????????????????????????????????????????# ""???" | | ?????????????????????????????????????????# "???"" | | ?????????????????????????????????????????# "??"" | | ?????????????????????????????????????????# """" | | ?????????????????????????????????????????# | | ?????????????????????????????????????????#/####### | | ?????????????????????????????????????????# #?????? | | ?????????????????????????????????????????# #?????? | | ?????????????????????????????????????????# ####### | | ??????????????????????????????????######## ## ## | | ???????????????#####+############;# ## ####### | | ?????????? a ==@=!^ =% % | | ?????????? Y ![* [ Y##### #### | | ?????????? ^ % #####+#### | | ??????????? #################### # # | | ????????????????# # ############# # | | ????????????????# # ""# # # | | ????????????????# ?# T"# # # | | ?????????????????# ?# ""# """ """ # # | | ??????????????????#/### # """ """ # # | | ??????##########??# + # """ """ # # | | ??????# #### ### # # # | | ????### """ # ## # # *# | | ????#"" """ # # #######/#########+#### | | ????#"Y """ ^# ^^ | | ????#"" ^^ | | ?????## """ | | ??????# """ #####+##+######### #### | | ??????# """ # ### ##??? ????#### # # | | ??????# ########?###???? ???????###### | | ??????##" ""####??????????????# ???????????? | | ???????#"R""??????????????????# ???????????? | | ???????#""" ??????????????????# ??????????? | | ?????????##???????????????????# """ """??????????? | | ??????????????????????????????# """ """ ?????????? | | ??????????????????????????????# """ """ ?????????? | +----------------------------------------------------+ Best States ------------- Heat Dissipation 28 Energy Generation 14 Energy Capacity 250 Matter Stores 300 Matter Capacity 300 Sight Range 16 Terrain Scan Range 16 Terrain Scan Density 10 Armor Coverage 300 Resistance: TH 10 Evasion (%) 55 Recoil Reduction 2 Item Schematics ----------------- None Robot Schematics ------------------ None Fabricated ------------ Nothing Alien Tech Used ----------------- None Achievements -------------- Backstab Unlikely Earthworm Challenges ------------ None Game ------ Seed ScanScanMount Manual? 0 Play Time 00:18:09 Cumulative 0.9 hours Start 2024.03.31 @ 22:28:39 End 2024.03.31 @ 22:41:47 Sessions 1 Manual Loads 0 Difficulty Rogue Special Mode None Game No. 2 Rogue 2 Adventurer 0 Explorer 0 Win Type - Total 0 Types 0/0/0/0/0/0/0/0/0 Lore% 0 Gallery% 5 Achievement% 6 Wizard Run 0 Options --------- Layout 1 ASCII 0 Keyboard 0 Movement Mouse Keybinds 0 Fullscreen 1 Font 24/Smallcaps Map View 50x35 Zoom Use 0% Tactical HUD 0 Map Filters NONE Filters NONE Steam 1 RUN: 973d8c7d-2577-4c77-a85a-9dd39adc44c1